bitfinex/quotes_SOLUSD_20250415
["timestamp","ask_amount","ask_price","bid_price","bid_amount"]
[1744717648526,6.2903,132.02,131.98,12.37419547]
[1744717648729,10.64,132.01,131.98,12.37419547]
[1744717650051,10.64,132.01,131.98,19.95049547]
[1744717652145,18.2152,132.01,131.98,12.37419547]
[1744717652339,30.58939547,132.01,131.97,33.5775]
[1744717652647,10.64,132.01,131.99,12.37419547]
[1744717652862,98.4368,132.08,132.01,18.64964886]
[1744717653155,10.64,132.08,132.07,12.37419547]
[1744717653330,10.64,132.08,132.04,18.64964886]
[1744717653526,10.64,132.08,132.05,12.37419547]
[1744717653723,18.2114,132.08,132.04,12.37419547]
[1744717653928,30.58559547,132.08,132.03,12.37419547]
[1744717654326,12.37419547,132.06,132.02,12.37419547]
[1744717654759,93.97419547,132.07,132.02,12.37419547]
[1744717655147,101.38155273,132.07,132.02,19.78155273]
[1744717655461,108.95375273,132.07,132.02,19.78155273]
[1744717655680,89.1722,132.07,132.04,19.78155273]
[1744717656461,81.6,132.07,132.04,19.78155273]
[1744717657184,89.1718,132.07,132.03,19.78155273]
[1744717657369,6.3133,132.06,132.02,19.78155273]
[1744717657884,6.3133,132.06,132.03,19.78155273]
[1744717658187,6.3133,132.06,132.04,19.78155273]
[1744717658389,6.3133,132.06,132.03,19.78155273]
[1744717659588,6.3133,132.06,132.02,18.64964886]
[1744717659770,6.3133,132.06,132.03,19.78155273]
[1744717660159,6.3133,132.06,132.03,27.35555273]
[1744717660766,6.3133,132.06,132.03,19.78155273]
[1744717661293,13.8857,132.06,132.03,19.78155273]
[1744717661995,13.8857,132.06,132.02,26.22394886]
[1744717662174,6.3133,132.06,132.03,19.78155273]
[1744717663301,13.8857,132.06,132.03,19.78155273]
[1744717663492,35.23315273,132.06,132.01,26.0]
[1744717663789,15.4516,132.06,132.02,19.78155273]
[1744717665083,7.8792,132.06,132.02,19.78155273]
[1744717665268,7.8792,132.06,132.03,27.35545273]
[1744717665875,7.8792,132.06,132.03,19.78155273]
[1744717666071,89.1718,132.07,132.03,27.35545273]
[1744717666806,7.5718,132.07,132.03,27.35545273]
[1744717667781,7.5718,132.07,132.03,19.78155273]
[1744717668373,27.35335273,132.07,132.02,27.35595273]
[1744717668876,19.78155273,132.06,132.01,19.78155273]
[1744717669186,46.28265273,132.07,132.02,19.78155273]
[1744717669702,7.5718,132.07,132.03,19.78155273]
[1744717670000,27.35335273,132.07,132.02,27.35585273]
[1744717671908,37.99285273,132.08,132.03,19.78155273]
[1744717672692,37.99285273,132.08,132.04,19.78155273]
[1744717672883,10.64,132.08,132.04,19.78155273]
[1744717673087,10.64,132.08,132.05,19.78155273]
[1744717673283,10.64,132.08,132.07,19.78155273]
[1744717674316,10.64,132.08,132.07,27.35325273]
[1744717674979,10.64,132.08,132.07,19.78155273]
[1744717676095,10.64,132.08,132.05,19.78155273]
[1744717676308,18.2112,132.08,132.05,19.78155273]
[1744717676682,18.2112,132.08,132.04,27.35455273]
[1744717677196,18.2112,132.08,132.04,31.00920867]
[1744717678696,30.57075981,132.08,132.04,18.64964886]
[1744717679096,12.35955981,132.06,132.02,18.64964886]
[1744717679415,12.35955981,132.05,132.0,31.00920867]
[1744717679595,12.35955981,132.05,132.0,57.00920867]
[1744717680121,12.35955981,132.05,132.0,31.00920867]
[1744717680316,12.35955981,132.05,132.0,57.00920867]
[1744717680523,19.93275981,132.05,132.0,64.58460867]
[1744717680723,19.93275981,132.05,132.01,12.35955981]
[1744717680929,7.5732,132.05,132.01,12.35955981]
[1744717681098,19.93275981,132.05,132.0,57.00920867]
[1744717681629,19.93205981,132.06,132.02,12.35955981]
[1744717681921,7.5725,132.06,132.02,12.35955981]
[1744717682504,7.5725,132.06,132.02,19.93395981]
[1744717682904,7.5725,132.06,132.02,31.00920867]
[1744717684631,7.5725,132.06,132.02,38.58360867]
[1744717685227,19.93205981,132.06,132.02,12.35955981]
[1744717685405,19.93205981,132.06,132.01,12.35955981]
[1744717686230,7.5725,132.06,132.02,12.35955981]
[1744717686916,19.93205981,132.06,132.01,12.35955981]
[1744717687818,12.35955981,132.05,132.0,31.00920867]
[1744717689129,7.5734,132.04,132.01,12.35955981]
[1744717689325,7.5734,132.04,132.0,12.35955981]
[1744717689326,19.93295981,132.04,132.0,12.35955981]
[1744717689711,8.2068,132.02,131.98,12.35955981]
[1744717689911,12.35955981,131.99,131.97,0.0001]
[1744717690112,22.89955981,131.98,131.97,0.0001]
[1744717690519,81.6,132.01,131.97,0.0001]
[1744717690836,10.54,131.98,131.97,0.0001]
[1744717691130,81.6,132.01,131.97,12.35965981]
[1744717691430,10.54,132.0,131.97,12.35965981]
[1744717691818,10.54,132.0,131.98,12.35955981]
[1744717692514,22.89955981,132.0,131.97,0.0001]
[1744717692924,10.54,132.0,131.97,0.0001]
[1744717693108,10.54,132.0,131.97,12.35965981]
[1744717693310,10.54,132.0,131.97,0.0001]
[1744717693504,18.1158,132.0,131.97,0.0001]
[1744717693709,30.47535981,132.0,131.97,0.0001]
[1744717693929,12.35955981,131.99,131.97,0.0001]
[1744717694333,30.47535981,132.0,131.97,0.0001]
[1744717697531,10.54,132.0,131.97,0.0001]
[1744717697835,10.54,132.0,131.97,12.35965981]
[1744717698334,10.54,132.0,131.97,0.0001]
[1744717698725,10.54,132.0,131.97,12.35965981]
[1744717699114,18.1158,132.0,131.97,0.0001]
[1744717699333,10.54,132.0,131.97,12.35965981]
[1744717699943,18.1157,132.0,131.97,0.0001]
[1744717700235,18.1157,132.0,131.97,12.35965981]
[1744717700440,10.54,132.0,131.97,12.35965981]
[1744717700815,10.54,132.0,131.98,12.35955981]
[1744717701227,10.54,132.0,131.97,12.35965981]
[1744717701426,10.54,132.0,131.98,12.35955981]
[1744717703516,10.54,132.0,131.97,18.64974886]
[1744717703737,10.54,132.0,131.97,31.00930867]
[1744717703940,18.1158,132.0,131.97,12.35965981]
[1744717704244,18.1158,132.0,131.97,0.0001]
[1744717705520,10.54,132.0,131.97,12.35965981]
[1744717706443,18.1157,132.0,131.97,12.35965981]
[1744717708339,10.54,132.0,131.98,12.35955981]
[1744717708515,6.4431,132.06,132.0,44.64964886]
[1744717708720,16.9831,132.06,132.04,12.35955981]
[1744717712220,6.2106,132.1,132.05,12.35955981]
[1744717712425,18.1109,132.09,132.06,12.35955981]
[1744717712625,10.54,132.09,132.06,12.35955981]
[1744717712832,10.54,132.09,132.07,12.35955981]
[1744717713021,10.54,132.09,132.08,12.35955981]
[1744717713444,10.54,132.09,132.07,12.35955981]
[1744717716546,10.54,132.09,132.06,12.35955981]
[1744717716849,18.1106,132.09,132.05,12.35955981]
[1744717717051,30.47015981,132.09,132.05,12.35955981]
[1744717717448,30.47015981,132.09,132.04,12.35955981]
[1744717717843,30.47015981,132.09,132.05,12.35955981]
[1744717720351,30.47015981,132.09,132.04,12.35955981]
[1744717721149,30.47015981,132.09,132.05,12.35955981]
[1744717721452,30.47015981,132.09,132.04,12.35955981]
[1744717721632,30.47015981,132.09,132.03,26.0]
[1744717721833,12.35955981,132.08,132.03,12.35955981]
[1744717722453,12.35955981,132.07,132.02,38.58350867]
[1744717722651,37.037,132.09,131.97,0.0001]
[1744717722652,6.3918,132.05,131.97,0.0001]
[1744717722842,93.6626,132.04,131.97,0.0001]
[1744717723036,12.35955981,132.03,131.98,12.35955981]
[1744717723229,6.3918,132.05,132.02,12.35955981]
[1744717723432,24.5049,132.05,132.01,12.35955981]
[1744717723631,12.35955981,132.04,131.99,12.35955981]
[1744717723836,12.35955981,132.04,131.99,18.64964886]
[1744717724140,12.35955981,132.04,132.0,12.35955981]
[1744717724336,36.86445981,132.05,132.0,12.35955981]
[1744717726557,24.5049,132.05,132.02,12.35955981]
[1744717726751,24.5049,132.05,132.01,12.35955981]
[1744717727143,36.86445981,132.05,132.01,12.35955981]
[1744717728555,16.9318,132.05,132.03,12.35955981]
[1744717728855,16.9318,132.05,132.01,12.35955981]
[1744717729363,24.5049,132.05,132.02,12.35955981]
[1744717730256,16.9318,132.05,132.03,12.35955981]
[1744717730559,16.9318,132.05,132.04,31.00920867]
[1744717730560,10.54,132.05,132.04,31.00920867]
[1744717731656,10.54,132.05,132.03,12.35955981]
[1744717732144,10.54,132.05,132.01,45.93465981]
[1744717732354,18.1129,132.05,132.01,45.93465981]
[1744717733456,18.1129,132.05,132.02,12.35955981]
[1744717733842,18.1129,132.05,132.04,12.35955981]
[1744717733843,10.54,132.05,132.04,12.35955981]
[1744717734952,10.54,132.05,132.03,31.00920867]
[1744717735260,10.54,132.05,132.03,26.56127799]
[1744717735862,10.54,132.05,132.04,7.91162913]
[1744717736043,10.54,132.05,132.04,15.48502913]
[1744717737163,6.5031,132.08,132.04,15.48502913]
[1744717737463,6.5031,132.08,132.06,7.91162913]
[1744717739259,10.56,132.09,132.07,7.91162913]
[1744717740448,1.6219,132.1,132.05,18.64964886]
[1744717740644,0.063,132.1,132.09,7.91162913]
[1744717741063,0.063,132.1,132.09,26.56127799]
[1744717741366,0.063,132.1,132.09,34.13177799]
[1744717742045,0.063,132.1,132.08,7.91162913]
[1744717742467,0.063,132.1,132.07,33.91162913]
[1744717742961,0.063,132.1,132.08,7.91162913]
[1744717743948,0.063,132.1,132.07,7.91162913]
[1744717744557,0.063,132.1,132.08,7.91162913]
[1744717745260,0.063,132.1,132.08,12.35414592]
[1744717745964,0.063,132.1,132.07,12.35414592]
[1744717747067,0.063,132.1,132.08,12.35414592]
[1744717748162,0.063,132.1,132.07,12.35414592]
[1744717749456,12.41714592,132.1,132.05,38.35414592]
[1744717750658,7.5705,132.09,132.05,38.35414592]
[1744717751250,7.5705,132.09,132.06,12.35414592]
[1744717751570,20.52874592,132.08,132.03,31.00379478]
[1744717752161,12.35414592,132.06,132.01,12.35414592]
[1744717752477,10.54,132.06,132.0,26.0]
[1744717752675,7.5734,132.04,132.01,12.35414592]
[1744717754379,7.573,132.05,132.01,19.92914592]
[1744717754553,10.54,132.06,132.02,12.35414592]
[1744717754756,18.1126,132.06,132.02,12.35414592]
[1744717756069,10.54,132.06,132.05,12.35414592]
[1744717756463,6.5501,132.08,132.06,18.64964886]
[1744717756675,0.063,132.1,132.07,12.35414592]
[1744717756851,0.063,132.1,132.09,12.35414592]
[1744717759576,0.063,132.1,132.07,12.35414592]
[1744717761174,0.063,132.1,132.07,19.92584592]
[1744717763082,0.063,132.1,132.07,12.35414592]
[1744717763770,0.063,132.1,132.07,19.92574592]
[1744717764478,0.063,132.1,132.08,12.35414592]
[1744717765365,0.063,132.1,132.07,12.35414592]
[1744717766274,0.063,132.1,132.08,12.35414592]
[1744717767382,0.063,132.1,132.07,12.35414592]
[1744717767876,0.063,132.1,132.08,12.35414592]
[1744717768081,0.063,132.1,132.06,7.5723]
[1744717768383,0.063,132.1,132.07,12.35414592]
[1744717768582,12.35414592,132.09,132.04,12.35414592]
[1744717768760,12.35414592,132.08,132.03,12.35414592]
[1744717768967,18.71804592,132.07,132.02,38.57839478]
[1744717769181,10.58,132.06,132.02,34.13734258]
[1744717769371,10.58,132.06,132.03,7.91309372]
[1744717770083,18.1524,132.06,132.03,7.91309372]
[1744717770385,18.1524,132.06,132.02,34.13734258]
[1744717770682,10.58,132.06,132.03,7.91309372]
[1744717771183,10.58,132.06,132.03,12.36241945]
[1744717772288,10.58,132.06,132.04,12.36241945]
[1744717772785,10.58,132.06,132.03,19.93641945]
[1744717772982,10.58,132.06,132.03,12.36241945]
[1744717774289,10.58,132.06,132.03,19.93631945]
[1744717775567,10.58,132.06,132.04,12.36241945]
[1744717775975,10.58,132.06,132.04,19.93561945]
[1744717776179,10.58,132.06,132.05,31.01206831]
[1744717777589,10.58,132.06,132.05,38.58486831]
[1744717777783,10.58,132.06,132.05,12.36241945]
[1744717778082,10.58,132.06,132.05,19.93521945]
[1744717778483,10.58,132.06,132.05,7.5728]
[1744717778684,10.58,132.06,132.05,12.36241945]
[1744717782905,10.58,132.06,132.05,19.93521945]
[1744717783070,10.58,132.06,132.05,38.58486831]
[1744717783265,14.1019,132.1,132.06,18.64964886]
[1744717783266,17.1118,132.1,132.06,18.64964886]
[1744717783471,17.1118,132.1,132.09,12.36241945]
[1744717783684,17.1118,132.1,132.08,12.36241945]
[1744717787493,17.1118,132.1,132.06,12.36241945]
[1744717787811,24.6819,132.1,132.06,12.36241945]
[1744717789071,24.6819,132.1,132.06,19.93451945]
[1744717789290,24.6819,132.1,132.07,12.36241945]
[1744717790395,24.6819,132.1,132.06,12.36241945]
[1744717791294,24.6819,132.1,132.06,7.90826072]
[1744717796703,32.59016072,132.1,132.05,15.48086072]
[1744717797000,24.6819,132.1,132.06,7.90826072]
[1744717799292,24.6819,132.1,132.06,15.48056072]
[1744717800001,17.1118,132.1,132.07,7.90826072]
[1744717800304,24.6818,132.1,132.07,7.90826072]
[1744717803808,0.063,132.1,132.09,58.19095246]
[1744717804102,0.063,132.1,132.07,33.5716]
[1744717804289,0.063,132.1,132.08,7.90826072]
[1744717804685,0.063,132.1,132.09,7.90826072]
[1744717805707,0.063,132.1,132.09,15.47876072]
[1744717806306,0.063,132.1,132.06,7.5723]
[1744717806615,10.603,132.1,132.06,15.48056072]
[1744717807411,7.6908,132.09,132.05,41.48086072]
[1744717807818,7.6908,132.09,132.06,15.48036072]
[1744717808111,7.6908,132.09,132.06,7.90826072]
[1744717808594,7.6908,132.09,132.06,15.48036072]
[1744717809307,6.1262,132.09,132.07,7.90826072]
[1744717809599,6.1262,132.09,132.08,7.90826072]
[1744717810113,6.1262,132.09,132.07,15.47966072]
[1744717811298,6.1262,132.09,132.07,7.90826072]
[1744717811502,6.1262,132.09,132.06,15.48026072]
[1744717812116,6.1262,132.09,132.07,7.90826072]
[1744717812317,6.1262,132.09,132.06,7.572]
[1744717812318,6.1262,132.09,132.06,15.48026072]
[1744717812827,6.1262,132.09,132.06,7.90826072]
[1744717813035,6.1262,132.09,132.06,15.48036072]
[1744717813323,6.1262,132.09,132.07,7.90826072]
[1744717814702,6.1262,132.09,132.07,15.47966072]
[1744717816318,10.603,132.1,132.07,15.47966072]
[1744717816504,10.603,132.1,132.08,7.90826072]
[1744717817010,10.603,132.1,132.09,7.90826072]
[1744717819007,10.603,132.1,132.09,15.47876072]
[1744717819328,10.603,132.1,132.09,34.12840958]
[1744717819619,0.063,132.1,132.09,34.12840958]
[1744717820820,0.063,132.12,132.11,26.0]
[1744717821027,0.063,132.12,132.11,33.90826072]
[1744717822218,0.063,132.12,132.11,60.12730958]
[1744717829919,0.063,132.12,132.08,18.64964886]
[1744717830223,0.063,132.12,132.09,7.90826072]
[1744717830523,0.063,132.12,132.1,7.90826072]
[1744717831827,0.063,132.12,132.09,7.90826072]
[1744717832436,0.063,132.12,132.09,15.47856072]
[1744717833023,0.063,132.12,132.08,26.0]
[1744717833227,10.583,132.12,132.08,33.90826072]
[1744717833728,10.583,132.12,132.09,7.90826072]
[1744717835127,18.1518,132.12,132.09,7.90826072]
[1744717835329,18.1518,132.12,132.08,41.47926072]
[1744717836132,18.1518,132.12,132.08,33.90826072]
[1744717836314,18.1518,132.12,132.08,41.47916072]
[1744717837539,18.1518,132.12,132.08,33.90826072]
[1744717837738,26.06006072,132.12,132.07,7.90826072]
[1744717839529,7.90826072,132.11,132.06,7.90826072]
[1744717839736,7.57,132.1,132.06,15.48046072]
[1744717841418,7.5697,132.11,132.08,7.90826072]
[1744717844134,92.183,132.12,132.08,15.47936072]
[1744717844339,92.183,132.12,132.1,7.90826072]
[1744717844540,10.583,132.12,132.1,7.90826072]
[1744717844919,18.1521,132.12,132.08,7.90826072]
[1744717845139,18.1521,132.12,132.07,15.47976072]
[1744717845443,18.1521,132.12,132.08,7.90826072]
[1744717846033,10.583,132.12,132.09,7.90826072]
[1744717846759,18.1519,132.12,132.08,7.90826072]
[1744717848829,26.06016072,132.12,132.07,7.90826072]
[1744717849036,18.1519,132.12,132.07,7.90826072]
[1744717849442,18.1519,132.12,132.08,7.90826072]
[1744717849825,7.90826072,132.11,132.05,33.5726]
[1744717850042,7.90826072,132.11,132.06,7.90826072]
[1744717850746,7.57,132.1,132.06,7.90826072]
[1744717851544,7.57,132.1,132.05,41.48086072]
[1744717851842,7.57,132.1,132.05,33.5726]
[1744717852041,7.90826072,132.06,132.02,0.03]
[1744717852244,7.90826072,132.03,132.02,0.03]
[1744717852832,15.48226072,132.03,132.02,0.03]
[1744717853031,15.48226072,132.03,131.98,0.03]
[1744717853032,34.41726072,132.03,131.98,0.03]
[1744717853230,15.95786072,132.01,131.98,0.03]
[1744717853430,10.52,132.0,131.98,0.03]
[1744717854045,18.42826072,132.0,131.98,0.03]
[1744717854946,15.48456072,131.99,131.98,0.03]
[1744717856732,7.5763,131.99,131.98,0.03]
[1744717857052,15.48456072,131.99,131.98,0.03]
[1744717857655,7.5763,131.99,131.98,0.03]
[1744717857830,15.48456072,131.99,131.98,0.03]
[1744717858855,7.5763,131.99,131.98,0.03]
[1744717859030,15.48456072,131.99,131.98,0.03]
[1744717859227,97.08456072,131.99,131.98,0.03]
[1744717862573,107.85564886,131.98,131.97,0.0001]
[1744717862731,123.34080958,131.98,131.96,0.03]
[1744717862932,7.90826072,131.97,131.96,0.03]
[1744717863542,7.90826072,131.97,131.95,0.03]
[1744717863743,33.90826072,131.96,131.95,0.03]
[1744717865059,41.48626072,131.96,131.95,0.03]
[1744717867463,41.48626072,131.96,131.95,0.0001]
[1744717869955,15.48596072,131.97,131.95,0.0001]
[1744717870345,89.1777,131.97,131.95,0.0001]
[1744717870546,15.1829,131.98,131.95,7.90836072]
[1744717870752,23.09116072,131.98,131.95,0.0001]
[1744717871266,7.5764,131.99,131.96,7.90826072]
[1744717872871,7.90826072,131.98,131.95,0.0001]
[1744717873047,34.42546072,131.99,131.95,0.0001]
[1744717873373,7.5764,131.99,131.95,12.38022132]
[1744717873874,19.95652132,131.99,131.95,0.0001]
[1744717874468,12.38012132,131.98,131.95,0.0001]
[1744717874775,7.5769,131.98,131.95,0.0001]
[1744717875579,19.95702132,131.98,131.95,0.0001]
[1744717875748,7.5769,131.98,131.95,0.0001]
[1744717876084,19.95702132,131.98,131.95,0.0001]
[1744717877011,38.89922132,131.98,131.95,0.0001]
[1744717877270,41.38964886,131.91,131.89,0.0001]
[1744717877450,26.0,131.88,131.84,0.03]
[1744717877654,12.38012132,131.85,131.84,0.03]
[1744717877853,22.92012132,131.85,131.84,0.03]
[1744717878373,10.54,131.85,131.84,0.03]
[1744717878553,10.54,131.85,131.84,12.41012132]
[1744717879277,10.54,131.85,131.84,0.03]
[1744717880575,18.1243,131.85,131.84,0.03]
[1744717880776,30.50442132,131.85,131.84,0.03]
[1744717881669,18.1243,131.85,131.84,0.03]
[1744717881879,30.50442132,131.85,131.84,0.03]
[1744717882881,18.1243,131.85,131.84,0.03]
[1744717883884,30.50442132,131.85,131.84,0.03]
[1744717885570,112.10442132,131.85,131.84,0.03]
[1744717886371,131.06532132,131.85,131.77,38.38012132]
[1744717886570,12.38012132,131.81,131.78,0.03]
[1744717886771,10.58,131.8,131.78,0.03]
[1744717887481,18.1678,131.8,131.78,0.03]
[1744717887676,30.54792132,131.8,131.78,0.03]
[1744717887879,18.1678,131.8,131.78,0.03]
[1744717888180,30.54792132,131.8,131.78,0.03]
[1744717889984,18.1678,131.8,131.78,0.03]
[1744717890892,10.58,131.8,131.79,12.38012132]
[1744717893591,10.58,131.8,131.78,0.03]
[1744717893793,10.58,131.8,131.79,12.38012132]
[1744717894595,10.58,131.8,131.78,12.41012132]
[1744717895189,18.1672,131.8,131.78,0.03]
[1744717895374,12.38012132,131.79,131.78,0.03]
[1744717895567,19.96792132,131.79,131.78,0.03]
[1744717898285,101.56792132,131.79,131.78,0.03]
[1744717898870,61.35757018,131.79,131.78,0.03]
[1744717899501,19.96792132,131.79,131.78,0.03]
[1744717899689,7.5878,131.79,131.78,0.03]
[1744717899986,19.96792132,131.79,131.78,0.03]
[1744717900395,7.5878,131.79,131.78,0.03]
[1744717900603,36.77192132,131.8,131.78,0.03]
[1744717901094,10.58,131.8,131.79,12.38012132]
[1744717901593,10.58,131.8,131.79,19.96792132]
[1744717901967,10.6,131.84,131.8,18.64964886]
[1744717902166,10.6,131.84,131.83,12.38012132]
[1744717902389,10.6,131.84,131.8,12.38012132]
[1744717903189,10.6,131.84,131.78,7.6181]
[1744717903190,30.44949392,131.84,131.78,7.6181]
[1744717903395,19.84949392,131.83,131.79,19.84949392]
[1744717903782,27.43519392,131.83,131.79,19.84949392]
[1744717903983,7.5857,131.83,131.79,27.43719392]
[1744717904282,7.5857,131.83,131.79,19.84949392]
[1744717904986,7.5857,131.83,131.8,19.84949392]
[1744717905192,18.1852,131.84,131.8,19.84949392]
[1744717905395,10.6,131.84,131.81,19.84949392]
[1744717905580,10.6,131.84,131.78,7.6181]
[1744717905581,10.6,131.84,131.82,19.84949392]
[1744717905983,18.185,131.84,131.81,19.84949392]
[1744717906780,38.03449392,131.84,131.8,19.84949392]
[1744717907501,18.185,131.84,131.8,19.84949392]
[1744717908783,18.185,131.84,131.81,19.84949392]
[1744717909288,18.185,131.84,131.8,19.84949392]
[1744717909499,18.185,131.84,131.81,19.84949392]
[1744717910498,10.6,131.84,131.82,19.84949392]
[1744717910799,10.6,131.84,131.83,19.84949392]
[1744717912304,10.6,131.84,131.81,19.84949392]
[1744717912600,10.6,131.84,131.83,19.84949392]
[1744717913602,10.6,131.84,131.82,19.84949392]
[1744717913803,10.6,131.84,131.81,19.84949392]
[1744717914001,10.6,131.84,131.83,19.84949392]
[1744717914307,10.6,131.84,131.82,27.43519392]
[1744717919589,10.6,131.84,131.82,27.43539392]
[1744717919789,10.6,131.84,131.8,26.0]
[1744717919790,18.185,131.84,131.8,26.0]
[1744717919986,10.6,131.84,131.81,19.84949392]
[1744717920191,10.6,131.84,131.8,33.5871]
[1744717920491,10.6,131.84,131.83,19.84949392]
[1744717921008,30.44949392,131.84,131.8,26.0]
[1744717921211,30.44949392,131.84,131.8,45.84949392]
[1744717922214,38.03439392,131.84,131.8,45.84949392]
[1744717922395,38.03439392,131.84,131.78,26.26774886]
[1744717922593,38.03439392,131.84,131.79,19.84949392]
[1744717923012,6.5015,131.83,131.79,19.84949392]
[1744717923316,14.0871,131.83,131.79,19.99604728]
[1744717923813,6.5015,131.83,131.8,12.40834728]
[1744717924011,36.78994728,131.88,131.83,18.64964886]
[1744717924012,8.3069,131.88,131.83,18.64964886]
[1744717924197,10.6,131.88,131.86,12.40834728]
[1744717924914,10.6,131.88,131.87,12.40834728]
[1744717925311,10.6,131.88,131.87,19.82935262]
[1744717925616,10.6,131.88,131.86,27.41305262]
[1744717926605,10.6,131.88,131.87,19.82935262]
[1744717926806,10.6,131.88,131.86,19.82935262]
[1744717928020,10.6,131.88,131.86,27.41305262]
[1744717928613,10.6,131.88,131.87,19.82935262]
[1744717929316,10.6,131.88,131.86,19.82935262]
[1744717929621,18.1827,131.88,131.84,19.82935262]
[1744717930023,18.1827,131.88,131.85,19.82935262]
[1744717930720,18.1827,131.88,131.86,19.82935262]
[1744717930923,18.1827,131.88,131.85,19.82935262]
[1744717932005,10.6,131.88,131.87,19.82935262]
[1744717932599,81.663,131.9,131.87,19.82935262]
[1744717932807,81.663,131.9,131.89,19.82935262]
[1744717933024,0.063,131.9,131.87,19.82935262]
[1744717933514,7.6446,131.9,131.87,19.82935262]
[1744717934125,7.6446,131.9,131.86,19.82935262]
[1744717934423,7.6446,131.9,131.87,19.82935262]
[1744717934617,7.6446,131.9,131.86,19.82935262]
[1744717934805,7.6446,131.9,131.87,19.82935262]
[1744717935009,7.6446,131.9,131.85,7.5841]
[1744717935210,7.6446,131.9,131.86,19.82935262]
[1744717935616,7.6446,131.9,131.87,19.82935262]
[1744717935931,7.6446,131.9,131.86,19.82935262]
[1744717936121,7.6446,131.9,131.87,19.82935262]
[1744717936324,0.063,131.9,131.89,19.82935262]
[1744717937134,0.063,131.9,131.89,38.47900148]
[1744717938027,0.063,131.9,131.89,46.06100148]
[1744717940033,0.063,131.9,131.89,38.47900148]
[1744717943011,0.063,131.9,131.86,26.0]
[1744717943335,19.82935262,131.88,131.83,19.82935262]
[1744717944216,7.5832,131.87,131.83,19.82935262]
[1744717944830,7.5832,131.87,131.84,19.82935262]
[1744717946343,46.36855262,131.88,131.83,38.47900148]
[1744717946723,7.6447,131.83,131.78,0.03]
[1744717946923,19.82935262,131.8,131.78,0.03]
[1744717947123,12.41444243,131.8,131.78,0.03]
[1744717947332,12.41444243,131.81,131.78,0.03]
[1744717947724,12.41444243,131.8,131.78,0.03]
[1744717948325,7.5878,131.79,131.78,0.03]
[1744717950047,7.5872,131.8,131.78,0.03]
[1744717950937,7.5872,131.8,131.78,19.89298045]
[1744717951127,10.54,131.79,131.78,19.89298045]
[1744717953552,18.1278,131.79,131.78,0.03]
[1744717956251,17.3286352,131.79,131.78,0.03]
[1744717956449,37.19161565,131.79,131.78,0.03]
[1744717957750,18.1478,131.79,131.78,0.03]
[1744717958055,38.01078045,131.79,131.78,0.03]
[1744717958844,18.1478,131.79,131.78,0.03]
[1744717963042,7.5878,131.79,131.78,0.03]
[1744717963243,10.56,131.79,131.78,0.03]
[1744717965874,27.44928045,131.82,131.78,0.03]
[1744717966068,10.56,131.79,131.78,0.03]
[1744717966449,10.56,131.79,131.78,19.89298045]
[1744717967963,10.56,131.79,131.78,0.03]
[1744717969369,18.1478,131.79,131.78,0.03]
[1744717969770,10.56,131.79,131.78,0.03]
[1744717972253,18.1478,131.79,131.78,0.03]
[1744717972859,10.56,131.79,131.78,0.03]
[1744717980673,18.1478,131.79,131.78,0.03]
[1744717981382,10.56,131.79,131.78,0.03]
[1744717990590,18.1478,131.79,131.78,0.03]
[1744717994581,10.56,131.79,131.78,0.03]
[1744717999988,18.1478,131.79,131.78,0.03]
[1744718002178,26.0923061,131.79,131.78,0.03]
[1744718002379,33.7904061,131.79,131.78,0.03]
[1744718002698,25.8459,131.79,131.78,0.03]
[1744718002881,33.7904061,131.79,131.78,0.03]
[1744718006994,115.3904061,131.79,131.78,0.03]
[1744718013506,141.3904061,131.79,131.78,0.03]
[1744718013691,162.69221115,131.79,131.78,0.03]
[1744718017098,181.66171115,131.79,131.74,0.03]
[1744718017330,7.9445061,131.75,131.74,0.03]